[Event "Live Chess"]
[Site "Chess.com"]
[Date "2023.05.21"]
[Round "-"]
[White "domrobson"]
[Black "worldchessleaguelive"]
[Result "1-0"]
[WhiteElo "1738"]
[BlackElo "1362"]
[TimeControl "300"]
[EndTime "17:51:10 PDT"]
[Termination "domrobson won on time"]

1. d4 {[%clk 0:04:59.2]} 1... d5 {[%clk 0:04:58.7]} 2. c4 {[%clk 0:04:58.6]}
2... dxc4 {[%clk 0:04:57.4]} 3. Nf3 {[%clk 0:04:57.9]} 3... Nf6 {[%clk
0:04:55.8]} 4. e3 {[%clk 0:04:57.1]} 4... e6 {[%clk 0:04:53.8]} 5. Bxc4 {[%clk
0:04:56.2]} 5... Be7 {[%clk 0:04:52.8]} 6. O-O {[%clk 0:04:55.7]} 6... O-O
{[%clk 0:04:52.4]} 7. Bd3 {[%clk 0:04:55.1]} 7... c5 {[%clk 0:04:50.1]} 8. dxc5
{[%clk 0:04:53.1]} 8... Bxc5 {[%clk 0:04:46.9]} 9. Nc3 {[%clk 0:04:51.9]} 9...
Nc6 {[%clk 0:04:44.6]} 10. a3 {[%clk 0:04:50.4]} 10... b6 {[%clk 0:04:42.1]} 11.
Qc2 {[%clk 0:04:48]} 11... h6 {[%clk 0:04:40.1]} 12. Bd2 {[%clk 0:04:46.6]}
12... Bb7 {[%clk 0:04:36.8]} 13. Rfd1 {[%clk 0:04:42]} 13... Qc7 {[%clk
0:04:35.2]} 14. Rac1 {[%clk 0:04:40.3]} 14... Rfd8 {[%clk 0:04:30.5]} 15. Nb5
{[%clk 0:04:37.8]} 15... Qe7 {[%clk 0:04:23.9]} 16. b4 {[%clk 0:04:35.7]} 16...
Bd6 {[%clk 0:04:20.3]} 17. Bc3 {[%clk 0:04:31]} 17... Rac8 {[%clk 0:04:17.9]}
18. Qb2 {[%clk 0:04:19.1]} 18... e5 {[%clk 0:03:49]} 19. Nxd6 {[%clk 0:04:09.4]}
19... Rxd6 {[%clk 0:03:42.5]} 20. Bxe5 {[%clk 0:04:02.5]} 20... Nxe5 {[%clk
0:03:38.8]} 21. Rxc8+ {[%clk 0:04:00.1]} 21... Bxc8 {[%clk 0:03:35.6]} 22. Qxe5
{[%clk 0:03:59]} 22... Qxe5 {[%clk 0:03:31.5]} 23. Nxe5 {[%clk 0:03:57.5]} 23...
Bf5 {[%clk 0:03:18.4]} 24. f3 {[%clk 0:03:43.4]} 24... Bxd3 {[%clk 0:03:13.8]}
25. Rxd3 {[%clk 0:03:41.2]} 25... Rxd3 {[%clk 0:03:12.3]} 26. Nxd3 {[%clk
0:03:40.1]} 26... Nd5 {[%clk 0:03:11.8]} 27. e4 {[%clk 0:03:38.3]} 27... Nc3
{[%clk 0:03:07]} 28. Kf2 {[%clk 0:03:36.7]} 28... Kf8 {[%clk 0:03:04.6]} 29. Ke3
{[%clk 0:03:32.6]} 29... Nb5 {[%clk 0:03:03.3]} 30. a4 {[%clk 0:03:30]} 30...
Nc7 {[%clk 0:03:01.9]} 31. Kd4 {[%clk 0:03:28.2]} 31... Ke7 {[%clk 0:03:00.8]}
32. f4 {[%clk 0:03:26.1]} 32... Ne6+ {[%clk 0:02:59]} 33. Ke3 {[%clk 0:03:24.9]}
33... Kd6 {[%clk 0:02:57.9]} 34. f5 {[%clk 0:03:17.8]} 34... Nd8 {[%clk
0:02:53.7]} 35. b5 {[%clk 0:03:14.3]} 35... Nb7 {[%clk 0:02:50.5]} 36. Kd4
{[%clk 0:03:12.6]} 36... f6 {[%clk 0:02:46.8]} 37. h4 {[%clk 0:03:07.7]} 37...
Na5 {[%clk 0:02:45.6]} 38. g4 {[%clk 0:03:06.6]} 38... Nb3+ {[%clk 0:02:43.5]}
39. Kc3 {[%clk 0:03:03.5]} 39... Na5 {[%clk 0:02:27.4]} 40. Kb4 {[%clk
0:02:51.5]} 40... Nb7 {[%clk 0:02:25.6]} 41. Kc4 {[%clk 0:02:50.1]} 41... Nd8
{[%clk 0:02:16.6]} 42. Kd4 {[%clk 0:02:48.4]} 42... Nf7 {[%clk 0:02:14.8]} 43.
h5 {[%clk 0:02:37.4]} 43... Ng5 {[%clk 0:02:08.7]} 44. Nf4 {[%clk 0:02:34.4]}
44... Nf3+ {[%clk 0:02:03.9]} 45. Ke3 {[%clk 0:02:31.9]} 45... Nh2 {[%clk
0:01:47.7]} 46. Ne6 {[%clk 0:02:27.8]} 46... Nxg4+ {[%clk 0:01:45.5]} 47. Kd4
{[%clk 0:02:22.8]} 47... Ne5 {[%clk 0:01:35.5]} 48. Nxg7 {[%clk 0:02:20]} 48...
Nf7 {[%clk 0:01:33.7]} 49. Ne8+ {[%clk 0:02:17.8]} 49... Ke7 {[%clk 0:01:31.1]}
50. Nc7 {[%clk 0:02:16.8]} 50... Kd7 {[%clk 0:01:19.2]} 51. Nd5 {[%clk 0:02:15]}
51... Ng5 {[%clk 0:00:58.1]} 52. Nxf6+ {[%clk 0:02:13.2]} 52... Ke7 {[%clk
0:00:57.8]} 53. Ng4 {[%clk 0:02:11.5]} 53... Nf3+ {[%clk 0:00:53.7]} 54. Kd5
{[%clk 0:02:09.9]} 54... Nd2 {[%clk 0:00:52.3]} 55. e5 {[%clk 0:02:02.8]} 55...
Nb1 {[%clk 0:00:47.6]} 56. f6+ {[%clk 0:02:01.3]} 56... Ke8 {[%clk 0:00:46.4]}
57. Nxh6 {[%clk 0:01:59.7]} 57... Nc3+ {[%clk 0:00:45.3]} 58. Kd6 {[%clk
0:01:57.5]} 58... Nxa4 {[%clk 0:00:40.9]} 59. e6 {[%clk 0:01:56.5]} 59... Nc3
{[%clk 0:00:38.8]} 60. f7+ {[%clk 0:01:53.8]} 60... Kf8 {[%clk 0:00:37.9]} 61.
Kd7 {[%clk 0:01:51.7]} 61... Nd5 {[%clk 0:00:33.5]} 62. Ng4 {[%clk 0:01:46.7]}
62... a5 {[%clk 0:00:17.7]} 63. bxa6 {[%clk 0:01:45]} 63... b5 {[%clk
0:00:14.7]} 64. a7 {[%clk 0:01:43.6]} 64... b4 {[%clk 0:00:13.3]} 65. a8=Q+
{[%clk 0:01:42.1]} 1-0

[Event "Live Chess"]
[Site "Chess.com"]
[Date "2023.05.21"]
[Round "-"]
[White "chessfiction"]
[Black "CeladonFish"]
[Result "1-0"]
[WhiteElo "2347"]
[BlackElo "1079"]
[TimeControl "300"]
[EndTime "17:51:42 PDT"]
[Termination "chessfiction won by checkmate"]

1. e4 {[%clk 0:04:58.5]} 1... d6 {[%clk 0:04:54.1]} 2. d4 {[%clk 0:04:58.4]}
2... Nf6 {[%clk 0:04:52.9]} 3. Nc3 {[%clk 0:04:57.1]} 3... g6 {[%clk 0:04:51.4]}
4. f4 {[%clk 0:04:56.3]} 4... Bg7 {[%clk 0:04:50.8]} 5. Nf3 {[%clk 0:04:55.3]}
5... O-O {[%clk 0:04:48.3]} 6. e5 {[%clk 0:04:54.1]} 6... dxe5 {[%clk
0:04:47.3]} 7. fxe5 {[%clk 0:04:54]} 7... Nd5 {[%clk 0:04:45.5]} 8. Bc4 {[%clk
0:04:39.5]} 8... Nxc3 {[%clk 0:04:43.5]} 9. bxc3 {[%clk 0:04:39.4]} 9... Nc6
{[%clk 0:04:40.7]} 10. O-O {[%clk 0:04:29.5]} 10... Bg4 {[%clk 0:04:37.5]} 11.
Qe1 {[%clk 0:04:24.7]} 11... Bxf3 {[%clk 0:04:35.3]} 12. Rxf3 {[%clk 0:03:55.2]}
12... Na5 {[%clk 0:04:22.1]} 13. Bd3 {[%clk 0:03:48.4]} 13... b6 {[%clk
0:04:19.6]} 14. Bg5 {[%clk 0:03:38.7]} 14... c5 {[%clk 0:04:17]} 15. Qh4 {[%clk
0:03:37.7]} 15... Nc6 {[%clk 0:04:09.6]} 16. Raf1 {[%clk 0:03:31.8]} 16... cxd4
{[%clk 0:04:06.6]} 17. Rh3 {[%clk 0:03:22]} 17... f6 {[%clk 0:03:58.2]} 18.
Qxh7+ {[%clk 0:03:20.1]} 18... Kf7 {[%clk 0:03:56.9]} 19. Qxg6+ {[%clk
0:03:17.5]} 19... Ke6 {[%clk 0:03:48.3]} 20. Qf5+ {[%clk 0:03:16]} 20... Kd5
{[%clk 0:03:44.3]} 21. exf6+ {[%clk 0:03:14.7]} 21... Kd6 {[%clk 0:03:39.5]} 22.
fxg7 {[%clk 0:03:14]} 22... Rxf5 {[%clk 0:03:37.5]} 23. Rxf5 {[%clk 0:03:11.6]}
23... dxc3 {[%clk 0:03:29.2]} 24. Rh8 {[%clk 0:03:09.8]} 24... Qxh8 {[%clk
0:03:19]} 25. gxh8=Q {[%clk 0:03:09.7]} 25... Rxh8 {[%clk 0:03:17.8]} 26. h4
{[%clk 0:03:06.6]} 26... Rg8 {[%clk 0:03:16.1]} 27. g4 {[%clk 0:03:04.4]} 27...
Ne5 {[%clk 0:03:14]} 28. Be2 {[%clk 0:03:02.4]} 28... e6 {[%clk 0:03:08.5]} 29.
Rf4 {[%clk 0:02:52.5]} 29... Nf7 {[%clk 0:03:06.8]} 30. Rxf7 {[%clk 0:02:51]}
30... e5 {[%clk 0:03:03.5]} 31. Kf2 {[%clk 0:02:48.9]} 31... a5 {[%clk
0:03:02.1]} 32. Ke3 {[%clk 0:02:47.6]} 32... b5 {[%clk 0:03:00]} 33. Bxb5 {[%clk
0:02:46.1]} 33... Rf8 {[%clk 0:02:56.9]} 34. Rxf8 {[%clk 0:02:44.6]} 34... e4
{[%clk 0:02:56.3]} 35. Bf4+ {[%clk 0:02:43.1]} 35... Ke7 {[%clk 0:02:54.8]} 36.
Rf5 {[%clk 0:02:39.3]} 36... a4 {[%clk 0:02:54.2]} 37. h5 {[%clk 0:02:37]} 37...
a3 {[%clk 0:02:52.8]} 38. h6 {[%clk 0:02:35.9]} 38... Ke6 {[%clk 0:02:51]} 39.
h7 {[%clk 0:02:34.7]} 39... Ke7 {[%clk 0:02:49.6]} 40. Re5+ {[%clk 0:02:33.3]}
40... Kf7 {[%clk 0:02:46.5]} 41. Bc4+ {[%clk 0:02:32.2]} 41... Kg6 {[%clk
0:02:44.2]} 42. Re7 {[%clk 0:02:18.6]} 42... Kf6 {[%clk 0:02:37.6]} 43. h8=Q+
{[%clk 0:02:15.8]} 43... Kxe7 {[%clk 0:02:37.5]} 44. Qe5+ {[%clk 0:02:14.7]}
44... Kd7 {[%clk 0:02:34.1]} 45. Qd6+ {[%clk 0:02:13.7]} 45... Ke8 {[%clk
0:02:32.5]} 46. Qe6+ {[%clk 0:02:12.7]} 46... Kd8 {[%clk 0:02:31.4]} 47. Bg5+
{[%clk 0:02:08.1]} 47... Kc7 {[%clk 0:02:25.8]} 48. Bd5 {[%clk 0:02:04.1]} 48...
Kb8 {[%clk 0:02:23.3]} 49. Bf4+ {[%clk 0:02:02.7]} 49... Ka7 {[%clk 0:02:21.3]}
50. Qd7+ {[%clk 0:02:00.3]} 50... Kb6 {[%clk 0:02:15.3]} 51. Qc7+ {[%clk
0:01:58.4]} 51... Kb5 {[%clk 0:02:13.5]} 52. Bc4+ {[%clk 0:01:57]} 52... Ka4
{[%clk 0:02:10.9]} 53. Qa7+ {[%clk 0:01:54]} 53... Kb4 {[%clk 0:02:09.3]} 54.
Bd6+ {[%clk 0:01:46.8]} 54... Kxc4 {[%clk 0:02:07.7]} 55. Qc5# {[%clk 0:01:46]}
1-0

[Event "Live Chess"]
[Site "Chess.com"]
[Date "2023.05.21"]
[Round "-"]
[White "SupremeTactician"]
[Black "ClassyChameleon"]
[Result "1-0"]
[WhiteElo "2317"]
[BlackElo "1114"]
[TimeControl "300"]
[EndTime "17:51:48 PDT"]
[Termination "SupremeTactician won by checkmate"]

1. e4 {[%clk 0:04:58.9]} 1... e5 {[%clk 0:04:58.5]} 2. Nf3 {[%clk 0:04:58]} 2...
Nc6 {[%clk 0:04:57.4]} 3. Nc3 {[%clk 0:04:57.3]} 3... Bc5 {[%clk 0:04:54.2]} 4.
Bb5 {[%clk 0:04:56.6]} 4... d6 {[%clk 0:04:46.6]} 5. d4 {[%clk 0:04:55.6]} 5...
exd4 {[%clk 0:04:37.9]} 6. Nxd4 {[%clk 0:04:55.5]} 6... Bxd4 {[%clk 0:04:36.9]}
7. Qxd4 {[%clk 0:04:53.1]} 7... Ne7 {[%clk 0:04:35.2]} 8. Qxg7 {[%clk
0:04:51.6]} 8... Rg8 {[%clk 0:04:29.3]} 9. Qxh7 {[%clk 0:04:50.9]} 9... a6
{[%clk 0:04:19.4]} 10. Bxc6+ {[%clk 0:04:47.7]} 10... bxc6 {[%clk 0:04:18.8]}
11. g3 {[%clk 0:04:46.1]} 11... Kd7 {[%clk 0:04:15.5]} 12. O-O {[%clk
0:04:42.8]} 12... c5 {[%clk 0:04:14.4]} 13. Nd5 {[%clk 0:04:40]} 13... Nxd5
{[%clk 0:04:13.1]} 14. exd5 {[%clk 0:04:39.9]} 14... c6 {[%clk 0:04:11.5]} 15.
Qxf7+ {[%clk 0:04:37.9]} 15... Qe7 {[%clk 0:04:06]} 16. dxc6+ {[%clk 0:04:36.5]}
16... Kd8 {[%clk 0:04:03.2]} 17. Qxg8+ {[%clk 0:04:35.7]} 17... Qe8 {[%clk
0:04:01.8]} 18. c7+ {[%clk 0:04:34.2]} 18... Kd7 {[%clk 0:04:00]} 19. Qxe8+
{[%clk 0:04:33.8]} 19... Kxe8 {[%clk 0:03:58.9]} 20. Bf4 {[%clk 0:04:33.6]}
20... Kd7 {[%clk 0:03:55.1]} 21. Rad1 {[%clk 0:04:33.5]} 21... Kxc7 {[%clk
0:03:53.6]} 22. Rxd6 {[%clk 0:04:33.4]} 22... Kb7 {[%clk 0:03:47.1]} 23. Rfd1
{[%clk 0:04:33.3]} 23... Rb8 {[%clk 0:03:43.7]} 24. Rd8 {[%clk 0:04:31]} 24...
Bg4 {[%clk 0:03:39.9]} 25. Rxb8+ {[%clk 0:04:30]} 25... Ka7 {[%clk 0:03:37.1]}
26. Rdd8 {[%clk 0:04:25.6]} 26... Bf3 {[%clk 0:03:33.8]} 27. Re8 {[%clk
0:04:23.9]} 27... c4 {[%clk 0:03:30]} 28. Re7+ {[%clk 0:04:23.8]} 28... Bb7
{[%clk 0:03:24.6]} 29. Rexb7# {[%clk 0:04:23.7]} 1-0

[Event "Live Chess"]
[Site "Chess.com"]
[Date "2023.05.21"]
[Round "-"]
[White "Pablo_dmp"]
[Black "WelshTiger"]
[Result "0-1"]
[WhiteElo "1862"]
[BlackElo "2351"]
[TimeControl "300"]
[EndTime "17:51:51 PDT"]
[Termination "WelshTiger won on time"]

1. e4 {[%clk 0:04:46.4]} 1... c5 {[%clk 0:04:57]} 2. a3 {[%clk 0:04:40.8]} 2...
d6 {[%clk 0:04:49.1]} 3. d4 {[%clk 0:04:38]} 3... cxd4 {[%clk 0:04:47.4]} 4.
Qxd4 {[%clk 0:04:37.9]} 4... Nc6 {[%clk 0:04:46.5]} 5. Bb5 {[%clk 0:04:33.1]}
5... Bd7 {[%clk 0:04:45.7]} 6. Qe3 {[%clk 0:04:25.7]} 6... g6 {[%clk 0:04:42.4]}
7. Bd2 {[%clk 0:04:23.1]} 7... Nf6 {[%clk 0:04:41.3]} 8. Nf3 {[%clk 0:04:19.6]}
8... Bg7 {[%clk 0:04:40.3]} 9. Bc3 {[%clk 0:04:15.8]} 9... O-O {[%clk 0:03:51]}
10. Nbd2 {[%clk 0:04:11.8]} 10... Ng4 {[%clk 0:03:44.1]} 11. Qd3 {[%clk
0:03:59.4]} 11... Nce5 {[%clk 0:03:41.6]} 12. Bxe5 {[%clk 0:03:54]} 12... Nxe5
{[%clk 0:03:40.2]} 13. Nxe5 {[%clk 0:03:51.5]} 13... Bxe5 {[%clk 0:03:38.9]} 14.
Bxd7 {[%clk 0:03:49.9]} 14... Qxd7 {[%clk 0:03:38.3]} 15. c3 {[%clk 0:03:43.2]}
15... b5 {[%clk 0:03:35]} 16. Nf3 {[%clk 0:03:40.6]} 16... Bg7 {[%clk
0:03:32.8]} 17. O-O {[%clk 0:03:37.8]} 17... a5 {[%clk 0:03:22.4]} 18. Rad1
{[%clk 0:03:30]} 18... Qb7 {[%clk 0:03:20.9]} 19. Qd5 {[%clk 0:03:26.6]} 19...
Rfb8 {[%clk 0:03:18.5]} 20. e5 {[%clk 0:03:23.2]} 20... Qxd5 {[%clk 0:03:15.5]}
21. Rxd5 {[%clk 0:03:21.6]} 21... dxe5 {[%clk 0:03:14.8]} 22. Nxe5 {[%clk
0:03:19.3]} 22... b4 {[%clk 0:03:10.8]} 23. Nc6 {[%clk 0:03:18]} 23... Rb7
{[%clk 0:03:09.6]} 24. cxb4 {[%clk 0:03:15.9]} 24... axb4 {[%clk 0:03:06.9]} 25.
Nxb4 {[%clk 0:03:10.6]} 25... Bxb2 {[%clk 0:03:04.2]} 26. Nc2 {[%clk 0:02:54.2]}
26... Rc8 {[%clk 0:02:58.2]} 27. Ne3 {[%clk 0:02:25.5]} 27... Bxa3 {[%clk
0:02:48.6]} 28. Rfd1 {[%clk 0:01:43.2]} 28... Bd6 {[%clk 0:02:45.1]} 29. h4
{[%clk 0:01:37.5]} 29... h5 {[%clk 0:02:42]} 30. g3 {[%clk 0:01:36]} 30... Rbc7
{[%clk 0:02:40.3]} 31. Kg2 {[%clk 0:01:31.1]} 31... Rc1 {[%clk 0:02:38.8]} 32.
R1d2 {[%clk 0:01:28.9]} 32... R1c5 {[%clk 0:02:33.8]} 33. R5d4 {[%clk 0:01:20]}
33... Kg7 {[%clk 0:02:30.9]} 34. Nd5 {[%clk 0:01:13.8]} 34... Rc2 {[%clk
0:02:25.6]} 35. Nb6 {[%clk 0:01:09.7]} 35... Rxd2 {[%clk 0:02:21.3]} 36. Rxd2
{[%clk 0:01:08.7]} 36... Rc6 {[%clk 0:02:20.3]} 37. Nd5 {[%clk 0:01:05.9]} 37...
Be5 {[%clk 0:02:14.6]} 38. Nxe7 {[%clk 0:01:01.2]} 38... Re6 {[%clk 0:02:11.9]}
39. Nd5 {[%clk 0:00:53.8]} 39... Rd6 {[%clk 0:02:10.8]} 40. Rd3 {[%clk
0:00:50.4]} 40... Ra6 {[%clk 0:02:06.1]} 41. Nb4 {[%clk 0:00:46.5]} 41... Ra4
{[%clk 0:02:03.7]} 42. Nc2 {[%clk 0:00:42.4]} 42... Ra2 {[%clk 0:02:01.7]} 43.
Nb4 {[%clk 0:00:33.2]} 43... Rb2 {[%clk 0:01:59.8]} 44. Nc6 {[%clk 0:00:29.8]}
44... Bf6 {[%clk 0:01:58.4]} 45. Nd4 {[%clk 0:00:25.7]} 45... Rb4 {[%clk
0:01:56.6]} 46. Nf3 {[%clk 0:00:24.1]} 46... Ra4 {[%clk 0:01:55.3]} 47. Rb3
{[%clk 0:00:19.3]} 47... Re4 {[%clk 0:01:53.5]} 48. Rd3 {[%clk 0:00:17.6]} 48...
Ra4 {[%clk 0:01:52.4]} 49. Rb3 {[%clk 0:00:16.7]} 49... Rc4 {[%clk 0:01:51.6]}
50. Rd3 {[%clk 0:00:16.3]} 50... Rc5 {[%clk 0:01:50.5]} 51. Rb3 {[%clk
0:00:15.7]} 51... Rd5 {[%clk 0:01:49.3]} 52. Ra3 {[%clk 0:00:14.2]} 52... Rc5
{[%clk 0:01:46.4]} 53. Rb3 {[%clk 0:00:13.5]} 53... Rc3 {[%clk 0:01:45.6]} 54.
Rxc3 {[%clk 0:00:12.3]} 54... Bxc3 {[%clk 0:01:45.2]} 55. Ng1 {[%clk 0:00:10.7]}
55... Kf6 {[%clk 0:01:44.5]} 56. Ne2 {[%clk 0:00:10.1]} 56... Be5 {[%clk
0:01:43.8]} 57. Kf3 {[%clk 0:00:09.5]} 57... Kf5 {[%clk 0:01:42.6]} 58. Ng1
{[%clk 0:00:08.8]} 58... f6 {[%clk 0:01:40.1]} 59. Nh3 {[%clk 0:00:08.5]} 59...
g5 {[%clk 0:01:39.1]} 60. hxg5 {[%clk 0:00:08]} 60... fxg5 {[%clk 0:01:38.1]}
61. Ng1 {[%clk 0:00:07.7]} 61... g4+ {[%clk 0:01:37]} 62. Kg2 {[%clk 0:00:05.6]}
62... Ke4 {[%clk 0:01:36.5]} 63. Ne2 {[%clk 0:00:04.2]} 63... Bd6 {[%clk
0:01:35.1]} 64. Ng1 {[%clk 0:00:03.8]} 64... Kd3 {[%clk 0:01:33.2]} 65. f3
{[%clk 0:00:03.3]} 65... Ke3 {[%clk 0:01:30.1]} 66. fxg4 {[%clk 0:00:02.4]}
66... hxg4 {[%clk 0:01:29.5]} 67. Nh3 {[%clk 0:00:01.2]} 67... Be7 {[%clk
0:01:25.2]} 68. Ng5 {[%clk 0:00:00.3]} 68... Bxg5 {[%clk 0:01:23.6]} 0-1

[Event "Live Chess"]
[Site "Chess.com"]
[Date "2023.05.21"]
[Round "-"]
[White "raminguy"]
[Black "Conradical12"]
[Result "1-0"]
[WhiteElo "1944"]
[BlackElo "1631"]
[TimeControl "300"]
[EndTime "17:52:02 PDT"]
[Termination "raminguy won by resignation"]

1. d4 {[%clk 0:04:57.3]} 1... d5 {[%clk 0:04:58.8]} 2. Nc3 {[%clk 0:04:56.5]}
2... Nf6 {[%clk 0:04:56.6]} 3. Bf4 {[%clk 0:04:56.1]} 3... c5 {[%clk 0:04:55.3]}
4. e4 {[%clk 0:04:54.9]} 4... dxe4 {[%clk 0:04:51.3]} 5. Nb5 {[%clk 0:04:51.3]}
5... Na6 {[%clk 0:04:45.9]} 6. dxc5 {[%clk 0:04:49.2]} 6... Qxd1+ {[%clk
0:04:28.5]} 7. Rxd1 {[%clk 0:04:46.8]} 7... Bd7 {[%clk 0:04:23.2]} 8. a4 {[%clk
0:04:44.3]} 8... Nxc5 {[%clk 0:04:17.5]} 9. Nc7+ {[%clk 0:04:42.4]} 9... Kd8
{[%clk 0:04:10.7]} 10. Nxa8 {[%clk 0:04:40.7]} 10... e6 {[%clk 0:04:04.1]} 11.
b3 {[%clk 0:04:31.3]} 1-0

[Event "Live Chess"]
[Site "Chess.com"]
[Date "2023.05.21"]
[Round "-"]
[White "Tushinskiy"]
[Black "KGreenGator"]
[Result "1-0"]
[WhiteElo "2161"]
[BlackElo "1803"]
[TimeControl "300"]
[EndTime "17:52:51 PDT"]
[Termination "Tushinskiy won by resignation"]

1. d4 {[%clk 0:04:58]} 1... Nf6 {[%clk 0:04:58]} 2. c3 {[%clk 0:04:57.9]} 2...
d5 {[%clk 0:04:56.7]} 3. Nf3 {[%clk 0:04:57.8]} 3... Nc6 {[%clk 0:04:55.1]} 4.
Bf4 {[%clk 0:04:57.2]} 4... Bf5 {[%clk 0:04:52.9]} 5. Nbd2 {[%clk 0:04:55.8]}
5... h6 {[%clk 0:04:48.1]} 6. Bg3 {[%clk 0:04:54.9]} 6... Nh5 {[%clk 0:04:42.8]}
7. e3 {[%clk 0:04:53.5]} 7... Nxg3 {[%clk 0:04:41.1]} 8. hxg3 {[%clk 0:04:53.4]}
8... e6 {[%clk 0:04:35.7]} 9. Bb5 {[%clk 0:04:52.1]} 9... Qd6 {[%clk 0:04:33.4]}
10. Ne5 {[%clk 0:04:50.8]} 10... a6 {[%clk 0:04:30.9]} 11. Qa4 {[%clk
0:04:49.6]} 11... Be7 {[%clk 0:04:15.5]} 12. Nxc6 {[%clk 0:04:44.5]} 12... O-O
{[%clk 0:04:04.3]} 13. Nxe7+ {[%clk 0:04:43]} 13... Qxe7 {[%clk 0:04:02.4]} 14.
Be2 {[%clk 0:04:42.6]} 14... b5 {[%clk 0:04:00.5]} 15. Qd1 {[%clk 0:04:41.2]}
15... c5 {[%clk 0:03:59.3]} 16. O-O {[%clk 0:04:41.1]} 16... Qg5 {[%clk
0:03:53.8]} 17. Nf3 {[%clk 0:04:39.7]} 17... Qg6 {[%clk 0:03:52.5]} 18. Re1
{[%clk 0:04:39.6]} 18... Qf6 {[%clk 0:03:49]} 19. dxc5 {[%clk 0:04:36.6]} 19...
Rac8 {[%clk 0:03:45.9]} 20. Qd4 {[%clk 0:04:35.6]} 20... Qe7 {[%clk 0:03:44.2]}
21. b4 {[%clk 0:04:33.2]} 21... a5 {[%clk 0:03:43.2]} 22. Bxb5 {[%clk
0:04:31.5]} 22... axb4 {[%clk 0:03:42]} 23. cxb4 {[%clk 0:04:31.4]} 23... Rb8
{[%clk 0:03:41.1]} 24. a4 {[%clk 0:04:30]} 24... Be4 {[%clk 0:03:36.5]} 25. Rac1
{[%clk 0:04:26.8]} 25... f6 {[%clk 0:03:35.8]} 26. Nd2 {[%clk 0:04:24.5]} 26...
e5 {[%clk 0:03:34.6]} 27. Qb2 {[%clk 0:04:21.3]} 27... Bf5 {[%clk 0:03:30.2]}
28. e4 {[%clk 0:04:19.1]} 28... dxe4 {[%clk 0:03:27.4]} 29. Nxe4 {[%clk
0:04:19]} 29... Rfd8 {[%clk 0:03:19.2]} 30. Nd6 {[%clk 0:04:16.8]} 30... Be6
{[%clk 0:03:15.7]} 31. f4 {[%clk 0:04:14.6]} 31... exf4 {[%clk 0:03:04.9]} 32.
Rxe6 {[%clk 0:04:14.5]} 32... Qc7 {[%clk 0:02:53.4]} 33. gxf4 {[%clk 0:04:10.8]}
1-0

[Event "Live Chess"]
[Site "Chess.com"]
[Date "2023.05.21"]
[Round "-"]
[White "sanjesh_ananda"]
[Black "nigelst"]
[Result "0-1"]
[WhiteElo "1330"]
[BlackElo "1786"]
[TimeControl "300"]
[EndTime "17:53:24 PDT"]
[Termination "nigelst won by resignation"]

1. e4 {[%clk 0:04:56]} 1... c6 {[%clk 0:04:57.8]} 2. Nf3 {[%clk 0:04:52.5]} 2...
d5 {[%clk 0:04:56.3]} 3. e5 {[%clk 0:04:49.9]} 3... Bg4 {[%clk 0:04:51.4]} 4. d4
{[%clk 0:04:48]} 4... e6 {[%clk 0:04:50.3]} 5. h3 {[%clk 0:04:45.2]} 5... Bxf3
{[%clk 0:04:47.3]} 6. Qxf3 {[%clk 0:04:43.7]} 6... Nd7 {[%clk 0:04:46.8]} 7. Bd3
{[%clk 0:04:33.1]} 7... c5 {[%clk 0:04:45.2]} 8. c3 {[%clk 0:04:19.6]} 8... cxd4
{[%clk 0:04:43.9]} 9. cxd4 {[%clk 0:04:18]} 9... Bb4+ {[%clk 0:04:43.3]} 10. Nc3
{[%clk 0:04:09.7]} 10... Ne7 {[%clk 0:04:41.9]} 11. O-O {[%clk 0:04:04.5]} 11...
O-O {[%clk 0:04:40.2]} 12. Qh5 {[%clk 0:03:55.5]} 12... g6 {[%clk 0:04:37.7]}
13. Qg4 {[%clk 0:03:48.7]} 13... Ba5 {[%clk 0:04:22.1]} 14. Nb5 {[%clk
0:03:37.2]} 14... Bc7 {[%clk 0:04:18.6]} 15. h4 {[%clk 0:03:19.3]} 15... a6
{[%clk 0:04:16.6]} 16. Nc3 {[%clk 0:02:59.9]} 16... Bb6 {[%clk 0:04:10.7]} 17.
h5 {[%clk 0:02:43.8]} 17... Kh8 {[%clk 0:04:04.3]} 18. Bh6 {[%clk 0:02:30.4]}
18... Rg8 {[%clk 0:04:02.3]} 19. Bg5 {[%clk 0:02:20.9]} 19... Qf8 {[%clk
0:03:57.7]} 20. Qh4 {[%clk 0:01:53.8]} 20... Nf5 {[%clk 0:03:49.2]} 21. Bxf5
{[%clk 0:01:45.3]} 21... exf5 {[%clk 0:03:48]} 22. h6 {[%clk 0:01:37.4]} 22...
Bd8 {[%clk 0:02:59.8]} 23. Nxd5 {[%clk 0:01:21]} 23... Bxg5 {[%clk 0:02:57.5]}
24. Qxg5 {[%clk 0:01:19.4]} 24... Qd8 {[%clk 0:02:43.1]} 25. Qf4 {[%clk
0:00:17.6]} 25... Qa5 {[%clk 0:02:27.2]} 26. Rac1 {[%clk 0:00:13.8]} 26... Qxd5
{[%clk 0:02:25.3]} 0-1

[Event "Live Chess"]
[Site "Chess.com"]
[Date "2023.05.21"]
[Round "-"]
[White "SupremeTactician"]
[Black "CeladonFish"]
[Result "1-0"]
[WhiteElo "2317"]
[BlackElo "1079"]
[TimeControl "300"]
[EndTime "17:53:38 PDT"]
[Termination "SupremeTactician won by resignation"]

1. e4 {[%clk 0:04:59.3]} 1... d6 {[%clk 0:04:58.1]} 2. d4 {[%clk 0:04:58.5]}
2... Nf6 {[%clk 0:04:51.5]} 3. Nc3 {[%clk 0:04:58.4]} 3... g6 {[%clk 0:04:50.1]}
4. f4 {[%clk 0:04:57.6]} 4... Bg7 {[%clk 0:04:49.4]} 5. Nf3 {[%clk 0:04:57.2]}
5... O-O {[%clk 0:04:49]} 6. Bd3 {[%clk 0:04:56.5]} 6... c5 {[%clk 0:04:48.2]}
7. O-O {[%clk 0:04:55.3]} 7... cxd4 {[%clk 0:04:47.1]} 8. Nxd4 {[%clk
0:04:55.2]} 8... Nc6 {[%clk 0:04:45]} 9. Nxc6 {[%clk 0:04:54.5]} 9... bxc6
{[%clk 0:04:44.7]} 10. h3 {[%clk 0:04:53.6]} 10... c5 {[%clk 0:04:43.9]} 11. Be3
{[%clk 0:04:51.7]} 11... d5 {[%clk 0:04:39.9]} 12. e5 {[%clk 0:04:50.4]} 12...
d4 {[%clk 0:04:37]} 13. exf6 {[%clk 0:04:48.6]} 13... Bxf6 {[%clk 0:04:36]} 14.
Ne4 {[%clk 0:04:46.2]} 14... dxe3 {[%clk 0:04:35]} 15. Nxf6+ {[%clk 0:04:45.6]}
15... exf6 {[%clk 0:04:32.6]} 16. Qf3 {[%clk 0:04:45.5]} 16... c4 {[%clk
0:04:23.9]} 17. Qxa8 {[%clk 0:04:41.4]} 17... cxd3 {[%clk 0:04:21.6]} 18. cxd3
{[%clk 0:04:40.9]} 18... e2 {[%clk 0:04:20.4]} 19. Rfe1 {[%clk 0:04:38.8]} 19...
Qxd3 {[%clk 0:04:19.5]} 20. Qf3 {[%clk 0:04:34.8]} 20... Qd2 {[%clk 0:04:12.9]}
21. Qxe2 {[%clk 0:04:32.4]} 21... Qxe2 {[%clk 0:04:11.5]} 22. Rxe2 {[%clk
0:04:32.3]} 22... Ba6 {[%clk 0:04:10.2]} 23. Re7 {[%clk 0:04:30.9]} 23... Rd8
{[%clk 0:04:08.4]} 24. Rxa7 {[%clk 0:04:29.7]} 24... Bd3 {[%clk 0:04:06.2]} 25.
Rd1 {[%clk 0:04:28.4]} 25... Rd4 {[%clk 0:04:03.7]} 26. Ra3 {[%clk 0:04:25.2]}
1-0